bitfinex/quotes_BTCUSD_20220202
["timestamp","ask_amount","ask_price","bid_price","bid_amount"]
[1643834963657,0.50378893,37491.0,37490.0,0.0011]
[1643834963857,0.50401244,37491.0,37490.0,0.0011]
[1643834964257,0.55401244,37491.0,37490.0,0.0011]
[1643834964497,0.53964236,37491.0,37490.0,0.0011]
[1643834964799,0.33945675,37491.0,37490.0,0.0011]
[1643834965196,0.7722939,37491.0,37490.0,0.0011]
[1643834965401,0.50278483,37491.0,37490.0,0.0011]
[1643834965600,0.28615675,37491.0,37490.0,0.0011]
[1643834965798,0.04967921,37493.0,37490.0,0.0011]
[1643834965999,0.29062275,37495.0,37490.0,0.0011]
[1643834966398,0.20194238,37496.0,37490.0,0.0011]
[1643834966698,0.2259288,37498.0,37490.0,0.00187574]
[1643834966699,0.22175372,37495.0,37490.0,0.00187574]
[1643834966900,0.21144223,37494.0,37490.0,0.00187574]
[1643834967098,0.21144223,37494.0,37491.0,0.00065678]
[1643834967299,0.20192366,37494.0,37491.0,0.00065678]
[1643834967701,0.22175372,37495.0,37491.0,0.00065678]
[1643834968176,0.22175372,37495.0,37490.0,0.00187574]
[1643834968480,0.066695,37494.0,37491.0,0.00065678]
[1643834968675,0.353424,37493.0,37491.0,0.00065678]
[1643834968876,0.63425852,37493.0,37491.0,0.00065678]
[1643834969077,1.20499905,37492.0,37491.0,0.00065678]
[1643834969375,0.45499905,37492.0,37490.0,0.00187574]
[1643834969577,0.10157505,37492.0,37490.0,0.00253253]
[1643834969777,0.21604001,37491.0,37490.0,0.00253253]
[1643834970176,0.26604001,37491.0,37490.0,0.00253253]
[1643834970580,0.26604001,37491.0,37490.0,0.00187574]
[1643834970975,0.85935659,37491.0,37490.0,0.00187574]
[1643834971475,1.21278059,37491.0,37490.0,0.00187574]
[1643834971676,1.31278059,37491.0,37490.0,0.00187574]
[1643834971900,1.31278059,37491.0,37490.0,0.0011]
[1643834972701,1.21946401,37491.0,37490.0,0.0011]
[1643834972903,0.05,37491.0,37490.0,0.0011]
[1643834973303,0.95011623,37491.0,37490.0,0.0011]
[1643834973705,1.30354023,37491.0,37490.0,0.0011]
[1643834974105,1.40215764,37491.0,37490.0,0.0011]
[1643834974305,1.55545764,37491.0,37490.0,0.0011]
[1643834974909,1.55545764,37491.0,37485.0,0.02060273]
[1643834974910,1.1,37489.0,37485.0,0.02060273]
[1643834975108,1.1,37489.0,37485.0,0.01760273]
[1643834975109,0.05,37486.0,37485.0,0.01760273]
[1643834975305,0.95,37485.0,37482.0,0.001]
[1643834975506,2.12556002,37484.0,37482.0,0.001]
[1643834975750,2.27556002,37484.0,37482.0,0.001]
[1643834975945,1.6988141,37484.0,37482.0,0.001]
[1643834976146,1.6988141,37484.0,37481.0,0.0061]
[1643834976347,0.29809229,37484.0,37481.0,0.0061]
[1643834977949,0.20145104,37488.0,37481.0,0.0061]
[1643834978150,0.4196966,37489.0,37482.0,0.066695]
[1643834978151,0.3037966,37489.0,37482.0,0.066695]
[1643834978353,0.19990787,37490.0,37482.0,0.066695]
[1643834978550,0.14861741,37491.0,37482.0,0.066695]
[1643834978748,0.37089753,37492.0,37482.0,0.066695]
[1643834978950,0.26181799,37490.0,37485.0,0.2812869]
[1643834979149,0.46290445,37490.0,37485.0,0.3479779]
[1643834979402,0.31181799,37490.0,37485.0,0.066691]
[1643834980196,0.31181799,37490.0,37481.0,0.0061]
[1643834980396,0.31691187,37489.0,37481.0,0.0061]
[1643834980798,0.353424,37488.0,37481.0,0.0061]
[1643834981000,0.25139455,37487.0,37481.0,0.0061]
[1643834981200,0.06671223,37485.0,37481.0,0.0061]
[1643834981398,1.22377941,37482.0,37481.0,0.0061]
[1643834981598,0.353424,37482.0,37481.0,0.0061]
[1643834981798,0.11671223,37485.0,37484.0,0.00076146]
[1643834982000,0.42013623,37485.0,37484.0,0.00076146]
[1643834982200,0.05,37487.0,37484.0,0.00076146]
[1643834982399,0.05,37490.0,37484.0,0.00076146]
[1643834982598,0.2830962,37486.0,37484.0,0.00076146]
[1643834982803,0.2830962,37486.0,37484.0,0.00141795]
[1643834983246,0.3330962,37486.0,37484.0,0.00141795]
[1643834983846,0.353424,37485.0,37484.0,0.00076146]
[1643834984047,0.3330962,37486.0,37484.0,0.00076146]
[1643834984248,0.3830962,37486.0,37484.0,0.00076146]
[1643834984852,1.003424,37485.0,37484.0,0.00076146]
[1643834986050,0.06670607,37489.0,37484.0,0.00076146]
[1643834986254,0.13694829,37491.0,37484.0,0.00076146]
[1643834986549,0.13694829,37491.0,37481.0,0.0061]
[1643834986550,0.3927,37494.0,37481.0,0.00683519]
[1643834986753,0.01967102,37496.0,37483.0,0.04267]
[1643834987015,0.01967102,37496.0,37495.0,0.22366779]
[1643834987214,0.01967102,37496.0,37495.0,0.34363979]
[1643834987415,0.01967102,37496.0,37495.0,0.58044033]
[1643834987815,0.01967102,37496.0,37495.0,1.38044033]
[1643834988012,0.29416723,37510.0,37495.0,1.38044033]
[1643834988013,0.0214284,37508.0,37495.0,0.58044033]
[1643834988214,0.0214284,37508.0,37495.0,0.0533]
[1643834988414,0.26204595,37502.0,37495.0,0.0533]
[1643834988613,0.26204595,37502.0,37491.0,0.066682]
[1643834988819,0.31204595,37502.0,37491.0,0.066682]
[1643834989214,0.08319344,37497.0,37492.0,0.19985313]
[1643834989914,0.08319344,37497.0,37489.0,0.0533]
[1643834990659,0.1498839,37497.0,37489.0,0.0533]
[1643834990854,0.1498839,37497.0,37489.0,0.30878553]
[1643834991052,0.1998839,37497.0,37489.0,0.30878553]
[1643834991253,0.05,37497.0,37489.0,0.30878553]
[1643834991555,0.06667088,37508.0,37490.0,0.23424045]
[1643834991751,0.4233,37506.0,37491.0,0.0533]
[1643834991951,0.4233,37506.0,37493.0,0.00073507]
[1643834992152,0.44230861,37506.0,37493.0,0.00073507]
[1643834992351,0.44230861,37506.0,37499.0,0.20576241]
[1643834992352,0.22794911,37505.0,37499.0,0.20576241]
[1643834992557,0.65611392,37506.0,37499.0,0.20576241]
[1643834993654,0.20433753,37504.0,37496.0,0.27898469]
[1643834994057,0.05,37504.0,37498.0,0.066666]
[1643834994253,0.1,37505.0,37496.0,0.41231369]
[1643834994495,0.1,37505.0,37496.0,0.133329]
[1643834994699,0.741258,37506.0,37497.0,0.066671]
[1643834994700,0.37340585,37506.0,37497.0,0.066671]
[1643834994896,0.18306874,37509.0,37502.0,0.25917392]
[1643834995096,0.02310562,37512.0,37502.0,0.25917392]
[1643834995496,0.02310562,37512.0,37503.0,0.22813764]
[1643834995696,0.02310562,37512.0,37503.0,0.27404341]
[1643834995896,0.57539126,37511.0,37503.0,0.50050718]
[1643834996096,0.30093542,37511.0,37503.0,0.27404341]
[1643834996398,0.30093542,37511.0,37505.0,0.066656]
[1643834999545,0.30093542,37511.0,37504.0,0.199962]
[1643834999947,0.32165424,37511.0,37504.0,0.199962]
[1643835000147,0.2272066,37508.0,37504.0,0.199962]
[1643835000349,1.78931847,37507.0,37498.0,0.00073499]
[1643835000550,0.406724,37506.0,37498.0,0.00073499]
[1643835000850,0.1,37504.0,37498.0,0.00073499]
[1643835001048,0.6365479,37503.0,37498.0,0.00073499]
[1643835001247,0.36473072,37501.0,37498.0,0.00073499]
[1643835001448,0.70323914,37500.0,37498.0,0.00073499]
[1643835001647,1.55,37498.0,37487.0,0.00065761]
[1643835001916,1.55,37498.0,37486.0,0.02040072]
[1643835001918,0.7365479,37497.0,37486.0,0.02040072]
[1643835002113,0.353424,37496.0,37486.0,0.02040072]
[1643835002413,0.353424,37496.0,37481.0,0.0061]
[1643835002414,0.066715,37492.0,37481.0,0.0061]
[1643835002614,0.066721,37487.0,37481.0,0.0061]
[1643835002812,0.07370072,37487.0,37481.0,0.0061]
[1643835003211,0.5832479,37486.0,37481.0,0.0061]
[1643835003413,0.353424,37485.0,37481.0,0.0061]
[1643835003611,0.34339403,37483.0,37481.0,0.0061]
[1643835003811,1.34404062,37482.0,37481.0,0.0061]
[1643835004013,0.353424,37482.0,37481.0,0.0061]
[1643835004214,0.27278551,37484.0,37481.0,0.0061]
[1643835004616,0.353424,37483.0,37481.0,0.0061]
[1643835005112,0.32278551,37484.0,37481.0,0.0061]
[1643835005312,0.0533,37486.0,37481.0,0.0061]
[1643835005514,0.02040072,37487.0,37481.0,0.0061]
[1643835005767,0.02040072,37487.0,37481.0,0.00631371]
[1643835006569,0.02040072,37487.0,37481.0,0.07300471]
[1643835006872,0.02040072,37487.0,37482.0,0.00065703]
[1643835007470,0.21704843,37500.0,37486.0,1.65]
[1643835007770,0.26331822,37505.0,37499.0,0.22394813]
[1643835008168,0.40157241,37509.0,37499.0,0.22394813]
[1643835008169,0.22070793,37509.0,37499.0,0.22394813]
[1643835008369,0.3822858,37509.0,37499.0,0.22394813]
[1643835008571,0.19989445,37508.0,37500.0,0.05]
[1643835008768,0.19968008,37508.0,37500.0,0.05]
[1643835008971,0.24983036,37508.0,37500.0,0.05]
[1643835009270,0.29235245,37505.0,37500.0,0.066668]
[1643835009898,0.1984155,37504.0,37496.0,0.183335]
[1643835010098,0.09781213,37501.0,37496.0,0.183335]
[1643835010298,0.09781213,37501.0,37497.0,0.20548804]
[1643835010999,0.33964336,37503.0,37497.0,0.20548804]
[1643835011400,0.20054643,37502.0,37496.0,0.133335]
[1643835011802,0.20107356,37502.0,37496.0,0.133335]
[1643835012001,0.20107356,37502.0,37488.0,0.01865644]
[1643835012002,0.353424,37501.0,37488.0,0.01865644]
[1643835012200,0.28113268,37500.0,37488.0,0.01865644]
[1643835012403,0.27297074,37496.0,37488.0,0.01865644]
[1643835012599,0.32297074,37496.0,37488.0,0.01865644]
[1643835012800,0.28078107,37493.0,37488.0,0.01865644]
[1643835013656,0.22144703,37489.0,37488.0,0.01865644]
[1643835013857,1.12144703,37489.0,37488.0,0.01865644]
[1643835014055,1.47487103,37489.0,37487.0,0.0006573]
[1643835014257,0.80606072,37488.0,37487.0,0.0006573]
[1643835014456,0.20606072,37488.0,37487.0,0.0006573]
[1643835014656,0.22868156,37492.0,37487.0,0.0006573]
[1643835015058,0.22868156,37492.0,37483.0,0.05]
[1643835015256,0.22868156,37492.0,37481.0,0.0061]
[1643835015257,0.38167058,37487.0,37481.0,0.0561]
[1643835015455,0.2189398,37486.0,37481.0,0.0561]
[1643835015855,0.38167058,37487.0,37481.0,0.0561]
[1643835016056,0.22355164,37489.0,37481.0,0.0561]
[1643835016257,0.22355164,37489.0,37483.0,0.066698]
[1643835016456,0.22394137,37492.0,37483.0,0.066698]
[1643835016656,0.02049588,37494.0,37490.0,0.000722]
[1643835016657,0.46279829,37494.0,37490.0,0.000722]
[1643835017115,0.36411578,37493.0,37490.0,0.000722]
[1643835017315,1.04754015,37491.0,37490.0,0.000722]
[1643835017721,1.55096415,37491.0,37490.0,0.000722]
[1643835017921,1.67598415,37491.0,37490.0,0.000722]
[1643835018118,1.67598415,37491.0,37487.0,0.00065731]
[1643835018119,1.3,37490.0,37487.0,0.00065731]
[1643835018318,0.68359191,37489.0,37487.0,0.00065731]
[1643835018518,0.886212,37488.0,37487.0,0.00065731]
[1643835018720,0.26856239,37485.0,37481.0,0.23967772]
[1643835018920,0.22872622,37484.0,37481.0,0.0061]
[1643835019521,0.21504708,37494.0,37481.0,0.0061]
[1643835019723,0.02075311,37502.0,37481.0,0.0061]
[1643835019923,0.06668403,37500.0,37483.0,0.066689]
[1643835020120,0.06668403,37500.0,37481.0,0.0061]
[1643835020121,0.06668403,37500.0,37486.0,0.00065729]
[1643835020322,0.2730292,37496.0,37486.0,0.00065729]
[1643835020518,0.0820996,37493.0,37486.0,0.00065729]
[1643835020751,0.10188191,37493.0,37489.0,0.28161763]
[1643835021653,0.01978231,37493.0,37489.0,0.28161763]
[1643835022054,0.54107538,37496.0,37489.0,0.34830263]
[1643835022452,0.2730292,37496.0,37489.0,0.34830263]
[1643835022855,0.08903413,37494.0,37489.0,0.066685]
[1643835023053,0.08903413,37494.0,37487.0,0.13401456]
[1643835023454,0.08903413,37494.0,37484.0,0.133384]
[1643835023755,0.13903413,37494.0,37487.0,0.00064455]
[1643835024157,0.2730292,37496.0,37487.0,0.00064455]
[1643835024401,0.2730292,37496.0,37487.0,0.13401455]
[1643835024802,0.2730292,37496.0,37487.0,0.13337]
[1643835025004,0.50695849,37496.0,37487.0,0.13397051]
[1643835025200,0.2730292,37496.0,37487.0,0.13397051]
[1643835025403,0.36253513,37498.0,37487.0,0.13397051]
[1643835025404,0.0666878,37497.0,37487.0,0.13397051]
[1643835026003,0.1194636,37503.0,37488.0,0.28504099]
[1643835026204,0.02021434,37502.0,37498.0,0.22421321]
[1643835026402,0.28670904,37502.0,37491.0,0.44749899]
[1643835026601,0.28670904,37502.0,37492.0,0.23153072]
[1643835026903,0.10083471,37500.0,37493.0,0.066676]
[1643835027301,0.10083471,37500.0,37495.0,0.21571552]
[1643835027502,0.10083471,37500.0,37493.0,0.066676]
[1643835028551,0.10083471,37500.0,37493.0,0.31911177]
[1643835028753,0.10083471,37500.0,37493.0,0.36911177]
[1643835030753,0.15083471,37500.0,37493.0,0.31911177]
[1643835031452,0.15083471,37500.0,37495.0,0.00070903]
[1643835031918,0.21354508,37500.0,37495.0,0.00070903]
[1643835032317,0.353424,37499.0,37495.0,0.00070903]
[1643835032721,0.1,37498.0,37495.0,0.00070903]
[1643835032918,0.353424,37497.0,37495.0,0.00070903]
[1643835033124,1.7813117,37496.0,37495.0,0.00070903]
[1643835033320,2.2347357,37496.0,37495.0,0.00070903]
[1643835033522,2.2847357,37496.0,37495.0,0.00070903]
[1643835033721,2.75623498,37496.0,37495.0,0.00070903]
[1643835035225,0.82492328,37496.0,37495.0,0.00070903]
[1643835035423,0.29063321,37496.0,37495.0,0.00070903]
[1643835036252,0.89063321,37496.0,37495.0,0.00070903]
[1643835036454,1.24405721,37496.0,37495.0,0.00070903]
[1643835036653,1.24405721,37496.0,37490.0,0.02261922]
[1643835036855,0.353424,37495.0,37490.0,0.02261922]
[1643835037252,0.16669599,37494.0,37490.0,0.02261922]
[1643835037452,0.353424,37493.0,37490.0,0.02261922]
[1643835037653,0.16669599,37494.0,37490.0,0.02261922]
[1643835037853,0.353424,37493.0,37490.0,0.02261922]
[1643835038054,0.353424,37493.0,37490.0,0.00070903]
[1643835038255,0.353424,37493.0,37488.0,0.26025055]
[1643835038256,0.80845453,37494.0,37488.0,0.20294958]
[1643835038454,0.05845453,37494.0,37490.0,0.23034476]
[1643835038656,0.33089417,37495.0,37490.0,0.23034476]
[1643835038855,0.15,37495.0,37488.0,0.20294958]
[1643835039055,0.05,37495.0,37488.0,0.20294958]
[1643835039254,0.11668892,37497.0,37488.0,0.20294958]
[1643835039503,0.06668892,37497.0,37489.0,0.066689]
[1643835039705,0.06668892,37497.0,37494.0,0.20863272]
[1643835039906,0.353424,37496.0,37489.0,0.31584916]
[1643835040104,0.06668892,37497.0,37489.0,0.31584916]
[1643835040303,0.06668892,37497.0,37489.0,0.066689]
[1643835040907,0.06668892,37497.0,37490.0,0.22036367]
[1643835041705,0.06668892,37497.0,37492.0,0.00068376]
[1643835041905,0.353424,37496.0,37492.0,0.00068376]
[1643835042105,0.403424,37496.0,37492.0,0.00068376]
[1643835042305,0.44690981,37495.0,37492.0,0.00068376]
[1643835042507,0.353424,37494.0,37492.0,0.00068376]
[1643835042707,0.42011954,37494.0,37492.0,0.00068376]
[1643835042907,1.53346716,37493.0,37492.0,0.00068376]
[1643835043637,1.83081187,37493.0,37492.0,0.00068376]
[1643835045536,1.68341709,37492.0,37487.0,0.01953431]
[1643835045734,0.69148313,37491.0,37487.0,0.01953431]
[1643835045934,0.406717,37490.0,37487.0,0.0413838]
[1643835046136,0.79980403,37489.0,37487.0,0.02250656]
[1643835046333,0.79980403,37489.0,37487.0,0.02184949]
[1643835046334,2.18300237,37488.0,37487.0,0.02184949]
[1643835046735,0.87891634,37488.0,37487.0,0.02184949]
[1643835046990,0.1,37488.0,37487.0,0.02184949]
[1643835047387,0.11671813,37489.0,37487.0,0.02184949]
[1643835047588,1.203417,37488.0,37487.0,0.02184949]
[1643835047791,1.353417,37488.0,37487.0,0.02184949]
[1643835048187,1.353417,37488.0,37486.0,0.00065675]
[1643835048388,2.23376153,37487.0,37486.0,0.00065675]
[1643835048587,2.52944734,37487.0,37486.0,0.00065675]
[1643835048790,2.52944734,37487.0,37482.0,0.02083595]
[1643835048988,0.42012721,37486.0,37485.0,0.00065676]
[1643835049190,1.64794414,37486.0,37485.0,0.00065676]
[1643835049392,1.52342721,37486.0,37485.0,0.00065676]
[1643835049789,0.12001021,37486.0,37485.0,0.00065676]
[1643835049989,0.12001021,37486.0,37482.0,0.02083595]
[1643835050289,1.253417,37485.0,37484.0,0.00065676]
[1643835050638,0.353417,37485.0,37484.0,0.00065676]
[1643835050935,0.12001021,37486.0,37484.0,0.00065676]
[1643835051133,0.353417,37485.0,37482.0,0.21000884]
[1643835051340,0.12001021,37486.0,37483.0,0.00065677]
[1643835051534,0.06669669,37489.0,37483.0,0.11735677]
[1643835051735,0.1,37494.0,37483.0,0.11735677]
[1643835051937,0.41592962,37498.0,37486.0,0.00065943]
[1643835052135,0.18089924,37498.0,37493.0,0.23657966]
[1643835052337,1.0,37499.0,37493.0,0.23657966]
[1643835052338,0.25098936,37495.0,37493.0,0.23657966]
[1643835052534,0.35147842,37495.0,37487.0,0.00065678]
[1643835052735,0.41816509,37495.0,37488.0,0.066688]
[1643835053937,0.46816509,37495.0,37488.0,0.066688]
[1643835054134,0.31767603,37495.0,37488.0,0.066688]
[1643835054992,1.0,37499.0,37497.0,0.2767272]
[1643835055191,0.353417,37498.0,37497.0,0.2767272]
[1643835055391,1.0,37499.0,37497.0,0.2767272]
[1643835055992,1.0,37499.0,37497.0,0.8359333]
[1643835056193,1.0,37499.0,37498.0,1.02056259]
[1643835056393,1.0,37499.0,37498.0,1.02734259]
[1643835057792,1.0,37499.0,37498.0,0.00678]
[1643835058634,1.0,37499.0,37496.0,0.200006]
[1643835058635,1.0,37499.0,37496.0,0.066679]
[1643835059435,0.08510597,37498.0,37496.0,0.066679]
[1643835060036,1.0,37499.0,37496.0,0.066679]
[1643835061035,1.07889806,37499.0,37496.0,0.066679]
[1643835061891,1.0,37499.0,37496.0,0.066679]
[1643835062089,1.0,37499.0,37498.0,0.00065831]
[1643835062489,1.0,37499.0,37498.0,0.24117829]
[1643835062690,1.0,37499.0,37498.0,0.05065831]
[1643835062889,1.07613327,37499.0,37498.0,0.05065831]
[1643835063088,1.07613327,37499.0,37498.0,0.00065831]
[1643835065295,1.47955027,37499.0,37498.0,0.00065831]
[1643835065642,0.06669017,37496.0,37486.0,0.01907554]
[1643835065840,0.06669017,37496.0,37487.0,0.00065755]
[1643835066040,0.353417,37495.0,37489.0,0.22656295]
[1643835066241,0.52357096,37495.0,37487.0,0.27100863]
[1643835066441,0.52357096,37495.0,37487.0,0.00065755]
[1643835066651,0.77682463,37494.0,37487.0,0.00065755]
[1643835066841,0.353417,37493.0,37486.0,0.01956873]
[1643835067046,0.353417,37493.0,37487.0,0.00065746]
[1643835067241,0.25765714,37490.0,37487.0,0.00065746]
[1643835067440,0.353417,37489.0,37487.0,0.00065746]
[1643835068041,1.08121382,37489.0,37486.0,0.01956873]
[1643835068243,0.78303018,37487.0,37486.0,0.00021411]
[1643835068440,1.13644718,37487.0,37486.0,0.00021411]
[1643835068940,0.78303018,37487.0,37486.0,0.00021411]
[1643835069140,0.08303018,37487.0,37485.0,0.00484998]
[1643835069383,0.08303018,37487.0,37485.0,0.0050641]
[1643835069587,0.06670246,37488.0,37485.0,0.0050641]
[1643835070389,0.06670246,37488.0,37485.0,0.00484998]
[1643835070586,0.06670246,37488.0,37485.0,0.00550784]
[1643835071589,0.06670246,37488.0,37485.0,0.00484998]
[1643835071789,0.06670246,37488.0,37485.0,0.00550784]
[1643835071989,0.06670246,37488.0,37486.0,0.00062302]
[1643835072590,0.353417,37487.0,37486.0,0.00062302]
[1643835072791,1.053417,37487.0,37486.0,0.00062302]
[1643835073435,0.353417,37487.0,37486.0,0.00062302]
[1643835074133,0.403417,37487.0,37486.0,0.00062302]
[1643835075234,0.11670246,37488.0,37486.0,0.00062302]
[1643835075436,0.18090729,37491.0,37486.0,0.00062302]
[1643835075637,0.06669361,37490.0,37486.0,0.00062302]
[1643835076638,0.06669361,37490.0,37486.0,0.06797287]
[1643835076892,0.06669361,37490.0,37486.0,0.06734985]
[1643835077095,0.06669361,37490.0,37486.0,0.00065785]
[1643835077599,0.06669361,37490.0,37485.0,0.005473]
[1643835077793,0.30432757,37490.0,37486.0,0.00065785]
[1643835078194,0.353417,37489.0,37486.0,0.00065785]
[1643835078395,0.68056342,37489.0,37486.0,0.00065785]
[1643835078595,0.353417,37488.0,37486.0,0.00065785]
[1643835078794,0.42012111,37488.0,37485.0,0.005473]
[1643835078997,0.453417,37487.0,37486.0,0.00065785]
[1643835079198,0.77599912,37487.0,37486.0,0.00065785]
[1643835079397,0.523536,37487.0,37486.0,0.00065785]
[1643835079598,0.05,37487.0,37486.0,0.00065785]
[1643835079796,0.21670411,37488.0,37486.0,0.00065785]
[1643835079995,0.21670411,37488.0,37485.0,0.005473]
[1643835079996,0.353417,37487.0,37485.0,0.005473]
[1643835080198,0.21670411,37488.0,37485.0,0.00613086]
[1643835080638,0.0666932,37490.0,37485.0,0.00613086]
[1643835081238,0.0666932,37490.0,37485.0,0.005473]
[1643835081438,0.32644495,37489.0,37486.0,0.00021405]
[1643835081838,0.32644495,37489.0,37487.0,0.00062302]
[1643835082140,0.803418,37488.0,37487.0,0.00062302]
[1643835082839,0.45,37488.0,37487.0,0.00062302]
[1643835083637,0.803418,37488.0,37487.0,0.00062302]
[1643835086087,0.0666932,37490.0,37487.0,0.00062302]
[1643835086288,0.06669398,37493.0,37487.0,0.00062302]
[1643835086489,0.21669398,37493.0,37487.0,0.00062302]
[1643835086789,0.353418,37492.0,37486.0,0.42975855]
[1643835087188,0.67159679,37492.0,37488.0,0.066694]
[1643835087388,0.67159679,37492.0,37486.0,0.42916026]
[1643835087389,0.453418,37491.0,37487.0,0.00059826]
[1643835087691,0.353418,37490.0,37487.0,0.00059826]
[1643835088338,0.353418,37490.0,37486.0,0.00062302]
[1643835088540,0.353418,37490.0,37487.0,0.00059827]
[1643835089540,0.353418,37490.0,37486.0,0.00062302]
[1643835089741,0.353418,37490.0,37487.0,0.0006065]
[1643835089940,0.353418,37491.0,37487.0,0.0006065]
[1643835090744,0.353418,37491.0,37486.0,0.00062302]
[1643835090942,0.353418,37491.0,37487.0,0.00060649]
[1643835091541,0.353418,37491.0,37489.0,0.00062298]
[1643835091740,0.403418,37491.0,37489.0,0.00062298]
[1643835091985,1.303418,37490.0,37489.0,0.00062298]
[1643835092186,1.53788327,37490.0,37489.0,0.00062298]
[1643835092385,0.7,37488.0,37487.0,0.00060649]
[1643835092585,1.33658476,37488.0,37487.0,0.00060649]
[1643835093185,1.33658476,37488.0,37485.0,0.07155298]
[1643835093389,0.353418,37487.0,37486.0,0.00060531]
[1643835094589,0.503418,37487.0,37485.0,0.00545531]
[1643835094788,1.203418,37486.0,37485.0,0.00545531]
[1643835095188,1.38432042,37486.0,37485.0,0.00545531]
[1643835095392,1.73278356,37486.0,37485.0,0.00545531]
[1643835095636,1.73278356,37486.0,37485.0,0.00484998]
[1643835096237,1.83278356,37486.0,37485.0,0.00484998]
[1643835096438,0.98278356,37486.0,37485.0,0.00484998]
[1643835096841,0.80188114,37486.0,37485.0,0.00484998]
[1643835097040,0.85528114,37486.0,37485.0,0.00484998]
[1643835097442,1.55,37484.0,37471.0,0.0131]
[1643835097647,0.75096153,37472.0,37471.0,0.0131]
[1643835097843,1.60426948,37472.0,37471.0,0.0131]
[1643835098442,1.51489118,37472.0,37471.0,0.0131]
[1643835098644,1.28007845,37472.0,37471.0,0.0131]
[1643835099892,0.493432,37472.0,37471.0,0.0131]
[1643835100092,0.0534,37472.0,37471.0,0.0131]
[1643835100488,0.0534,37480.0,37471.0,0.0131]
[1643835100887,0.21141033,37476.0,37471.0,0.2437178]
[1643835101489,0.21141033,37476.0,37471.0,0.0131]
[1643835101889,0.21141033,37476.0,37472.0,0.00065838]
[1643835102288,0.353422,37475.0,37472.0,0.00065838]
[1643835102489,0.21141033,37476.0,37472.0,0.00065838]
[1643835102889,0.21141033,37476.0,37471.0,0.01371214]
[1643835103142,0.353422,37475.0,37472.0,0.00065837]
[1643835103348,0.1,37474.0,37472.0,0.00065837]
[1643835103541,1.503422,37473.0,37472.0,0.00065837]
[1643835103945,1.83746046,37473.0,37471.0,0.01371214]
[1643835104144,1.38489092,37472.0,37471.0,0.01437052]
[1643835104344,0.58489092,37472.0,37471.0,0.01437052]
[1643835104747,0.63489092,37472.0,37471.0,0.01437052]
[1643835105145,0.63489092,37472.0,37471.0,0.01371214]
[1643835105345,0.403422,37472.0,37471.0,0.01371214]
[1643835105547,0.05,37472.0,37471.0,0.01371214]
[1643835105746,0.0534,37475.0,37471.0,0.01371214]
[1643835105946,0.04579239,37475.0,37471.0,0.01371214]
[1643835106549,0.04579239,37475.0,37472.0,0.00060118]
[1643835107693,0.353422,37474.0,37472.0,0.00060118]
[1643835107894,0.42015061,37474.0,37472.0,0.00060118]
[1643835108092,0.753422,37473.0,37472.0,0.00060118]
[1643835108493,0.5,37472.0,37459.0,0.07445684]
[1643835108692,0.5,37472.0,37463.0,0.23673199]
[1643835108892,0.28020112,37469.0,37464.0,0.26116707]
[1643835109096,0.28020112,37469.0,37464.0,0.26182521]
[1643835109291,0.5,37472.0,37464.0,0.26182521]
[1643835109492,0.04579239,37475.0,37464.0,0.26182521]
[1643835109792,0.353422,37474.0,37464.0,0.26182521]
[1643835109992,0.403422,37474.0,37464.0,0.26116707]
[1643835110193,0.22128041,37468.0,37467.0,0.00065812]
[1643835110635,0.2949716,37471.0,37467.0,0.00065812]
[1643835111336,0.2949716,37471.0,37463.0,0.23673199]
[1643835111337,0.11672829,37474.0,37463.0,0.23673199]
[1643835111535,0.22164514,37471.0,37467.0,0.00065812]
[1643835112337,0.29350921,37473.0,37467.0,0.00065812]
[1643835112537,0.89325968,37476.0,37466.0,0.00059054]
[1643835112739,0.4461,37476.0,37469.0,0.26570264]
[1643835113138,0.4461,37476.0,37467.0,0.00065812]
[1643835113339,0.23675119,37472.0,37468.0,0.066719]
[1643835113541,0.23675119,37472.0,37467.0,0.00065812]
[1643835113738,0.23675119,37472.0,37466.0,0.00059054]
[1643835113937,0.23675119,37472.0,37468.0,0.00021348]
[1643835114137,0.47798109,37472.0,37468.0,0.00021348]
[1643835114789,0.47798109,37472.0,37466.0,0.24603504]
[1643835114990,0.47798109,37472.0,37468.0,0.00021348]
[1643835115892,0.353422,37471.0,37468.0,0.00021348]
[1643835116094,0.353422,37471.0,37466.0,0.24603504]
[1643835116293,0.46902854,37472.0,37468.0,0.00080399]
[1643835116492,0.353422,37471.0,37468.0,0.00080399]
[1643835117295,0.353422,37471.0,37468.0,0.00059051]
[1643835117594,0.353422,37471.0,37468.0,0.00124903]
[1643835118140,0.46902854,37472.0,37468.0,0.00124903]
[1643835118539,0.2412299,37472.0,37468.0,0.00059051]
[1643835118743,0.2412299,37472.0,37468.0,0.00124903]
[1643835119338,0.2412299,37472.0,37460.0,0.23205573]
[1643835119540,0.20054391,37471.0,37462.0,0.020428]
[1643835119938,0.20054391,37471.0,37461.0,0.183441]
[1643835120140,0.20054391,37471.0,37463.0,0.133447]
[1643835120340,0.2732591,37468.0,37465.0,0.05]
[1643835120741,0.20054391,37471.0,37465.0,0.05]
[1643835120939,0.02065368,37472.0,37465.0,0.05]
[1643835121344,0.02033237,37472.0,37465.0,0.05]
[1643835121740,0.27351671,37470.0,37465.0,0.05]
[1643835122014,0.27351671,37470.0,37466.0,0.066723]
[1643835122311,0.00065847,37469.0,37466.0,0.066723]
[1643835122711,0.00065847,37469.0,37465.0,0.05]
[1643835122712,0.20166272,37469.0,37465.0,0.05]
[1643835123211,0.20100425,37469.0,37465.0,0.05]
[1643835123511,0.20166272,37469.0,37465.0,0.05]
[1643835123711,0.09954901,37468.0,37465.0,0.05]
[1643835124210,0.20067981,37467.0,37465.0,0.05]
[1643835124411,0.20077194,37467.0,37465.0,0.05]
[1643835124612,0.26406159,37466.0,37465.0,0.05]
[1643835124814,0.26406159,37466.0,37463.0,0.133447]
[1643835125012,0.20012641,37465.0,37461.0,0.0006586]
[1643835125412,0.206845,37464.0,37461.0,0.0006586]
[1643835125640,0.206845,37464.0,37460.0,0.133459]
[1643835125942,0.206845,37464.0,37461.0,0.00065856]
[1643835126941,0.01894882,37466.0,37464.0,0.00607789]
[1643835127242,0.00065849,37465.0,37464.0,0.00607789]
[1643835127444,0.00065849,37465.0,37464.0,0.02650989]
[1643835128042,0.01894882,37466.0,37465.0,0.87299093]
[1643835128241,0.0193242,37470.0,37465.0,0.24342193]
[1643835128443,0.00065849,37466.0,37464.0,0.00607789]
[1643835129243,0.0193242,37470.0,37465.0,0.020428]
[1643835129495,0.0193242,37470.0,37467.0,0.31731276]
[1643835130592,0.0193242,37470.0,37467.0,0.066724]